bitfinex/quotes_SOLUSD_20240813
["timestamp","ask_amount","ask_price","bid_price","bid_amount"]
[1723544766587,6.9433,144.03,144.0,45.0]
[1723544766788,40.56,144.03,143.95,17.3662]
[1723544766992,6.9447,144.0,143.95,24.3129]
[1723544767298,57.9181,144.03,143.93,16.0345]
[1723544767493,6.9457,143.98,143.93,22.982]
[1723544767709,40.56,144.01,143.93,16.0345]
[1723544767920,26.9445,144.0,143.95,6.9468]
[1723544768097,20.0,144.0,143.94,17.3679]
[1723544768416,6.9454,143.98,143.93,6.9476]
[1723544768722,6.9454,143.98,143.93,24.3164]
[1723544768911,6.945,143.99,143.94,6.9473]
[1723544769488,20.0,144.0,143.93,17.3688]
[1723544769893,0.81962878,143.99,143.93,17.3688]
[1723544770117,6.945,143.99,143.94,6.947]
[1723544770305,6.946,143.97,143.9,6.1286]
[1723544770616,6.9462,143.97,143.92,6.9482]
[1723544770916,6.9469,143.95,143.9,6.1286]
[1723544771220,40.56,143.99,143.9,6.1286]
[1723544771538,20.0,144.0,143.97,7.07129]
[1723544771724,20.0,144.0,143.97,6.9458]
[1723544772319,50.56,144.05,143.99,17.48729]
[1723544772518,50.56,144.05,144.0,45.37647]
[1723544772519,6.9425,144.04,144.0,45.37647]
[1723544772998,10.0,144.05,144.04,6.9425]
[1723544773198,10.0,144.05,144.04,45.12549]
[1723544773404,10.0,144.05,144.04,45.0]
[1723544774595,47.5004,144.09,144.03,51.9425]
[1723544774795,6.9406,144.08,144.04,0.12549]
[1723544775212,6.9412,144.07,144.03,45.0]
[1723544775419,40.56,144.07,143.99,17.362]
[1723544775692,47.5025,144.05,143.98,15.9739]
[1723544775928,20.0,144.04,143.98,15.9739]
[1723544776121,20.0,144.04,144.0,6.9441]
[1723544776422,26.9425,144.04,144.0,17.3607]
[1723544777134,20.0,144.04,144.01,45.0]
[1723544777295,40.56,144.07,144.01,45.0]
[1723544777296,20.0,144.06,144.01,45.0]
[1723544777700,41.37962878,144.05,144.01,45.0]
[1723544777905,0.81962878,144.04,143.94,33.6821]
[1723544778130,20.0,144.04,143.96,17.49059]
[1723544778429,20.0,144.04,144.0,6.9444]
[1723544778729,6.9433,144.03,143.98,24.3076]
[1723544779031,20.0,144.04,143.98,17.3626]
[1723544779334,20.0,144.04,143.99,52.19578]
[1723544779335,26.9425,144.04,143.99,52.19578]
[1723544779535,20.0,144.04,144.01,0.12549]
[1723544779832,40.56,144.09,144.01,52.19478]
[1723544779833,6.9418,144.06,144.01,52.19478]
[1723544780008,20.0,144.08,144.01,45.25098]
[1723544780207,6.9416,144.06,144.02,0.12549]
[1723544780408,6.9412,144.07,144.02,7.06859]
[1723544780704,40.56,144.09,144.03,45.0]
[1723544780917,40.56,144.09,144.0,17.3605]
[1723544781118,6.9421,144.05,144.0,24.3046]
[1723544781434,57.9105,144.09,143.99,6.9448]
[1723544781616,57.9105,144.09,143.98,6.945]
[1723544781617,6.943,144.03,143.98,6.945]
[1723544781821,6.9434,144.02,143.97,24.3096]
[1723544782824,6.9431,144.03,143.98,52.32177]
[1723544783708,6.9426,144.04,143.99,6.9445]
[1723544783912,20.0,144.03,144.0,45.0]
[1723544784116,26.9431,144.03,144.0,45.0]
[1723544784412,26.9431,144.03,143.99,51.9449]
[1723544784914,20.0,144.03,144.0,6.9443]
[1723544785116,20.0,144.06,144.01,51.9438]
[1723544785428,6.942,144.05,144.02,45.0]
[1723544785619,20.0,144.04,144.02,45.0]
[1723544785819,20.0,144.04,144.01,45.0]
[1723544786226,23.4835,144.1,144.01,45.0]
[1723544786227,40.56,144.09,144.02,0.25098]
[1723544786414,6.9416,144.06,144.02,0.37647]
[1723544786934,20.0,144.05,144.02,7.31977]
[1723544787122,20.0,144.05,144.03,45.0]
[1723544787318,40.56,144.11,144.04,0.12549]
[1723544787524,57.9089,144.11,144.03,45.0]
[1723544787824,47.5004,144.09,144.04,7.19338]
[1723544788008,6.9406,144.08,144.05,45.0]
[1723544788407,6.9406,144.08,144.04,0.37647]
[1723544788408,6.9406,144.08,144.04,0.25098]
[1723544789047,0.804752,144.13,144.07,6.9407]
[1723544789345,6.9388,144.12,144.08,45.0]
[1723544789535,0.804752,144.13,144.09,0.12549]
[1723544789744,0.804752,144.13,144.09,17.85156]
[1723544790036,0.804752,144.13,144.1,45.0]
[1723544790833,41.364752,144.13,144.05,0.12549]
[1723544791012,40.56,144.11,144.03,16.4341]
[1723544791363,6.9418,144.06,144.03,16.4341]
[1723544791642,6.9418,144.06,144.01,13.4591]
[1723544791831,6.9409,144.08,144.03,6.9429]
[1723544792028,40.56,144.09,144.01,6.5156]
[1723544792029,60.56,144.07,144.01,6.5156]
[1723544792209,20.0,144.07,144.01,6.5156]
[1723544792550,20.0,144.07,144.03,6.9426]
[1723544792753,26.9402,144.09,144.04,6.9425]
[1723544792961,20.0,144.09,144.03,17.357]
[1723544793123,20.0,144.09,144.04,0.25098]
[1723544793330,6.9396,144.1,144.05,7.19258]
[1723544793548,20.0,144.09,144.06,45.0]
[1723544794224,0.804752,144.13,144.07,0.12549]
[1723544794433,7.743252,144.13,144.08,6.9405]
[1723544794626,7.743252,144.13,144.09,45.0]
[1723544794838,6.9386,144.12,144.09,45.0]
[1723544795038,7.743252,144.13,144.08,51.9405]
[1723544795234,6.9387,144.12,144.08,45.0]
[1723544795441,0.804752,144.13,144.08,45.0]
[1723544795649,20.804752,144.13,144.08,45.0]
[1723544795850,40.56,144.12,144.02,17.358]
[1723544796149,6.9417,144.06,144.01,13.4592]
[1723544796559,6.9411,144.07,144.02,6.9434]
[1723544796855,40.56,144.1,144.01,30.8189]
[1723544797066,40.56,144.08,144.01,6.5156]
[1723544797367,40.56,144.08,144.03,6.9426]
[1723544797368,20.0,144.07,144.03,6.9426]
[1723544797525,20.0,144.07,144.01,6.5156]
[1723544797722,6.9431,144.03,143.99,16.3979]
[1723544798229,6.9426,144.04,143.99,23.3426]
[1723544799257,6.9421,144.05,144.0,6.9444]
[1723544799552,20.0,144.04,144.0,6.9444]
[1723544799758,20.0,144.04,144.01,51.9439]
[1723544800144,20.0,144.05,144.01,51.9439]
[1723544800533,20.0,144.05,144.02,6.9433]
[1723544800747,20.0,144.06,144.03,45.0]
[1723544801865,26.9415,144.06,144.03,45.0]
[1723544802158,6.9425,144.04,144.02,45.0]
[1723544802348,6.942,144.05,144.01,45.0]
[1723544802658,6.9421,144.05,144.01,45.0]
[1723544802859,60.56,144.06,143.99,16.3979]
[1723544803256,26.942,144.06,143.99,33.7594]
[1723544803437,20.0,144.06,143.99,16.3979]
[1723544803642,6.9406,144.08,143.99,16.3979]
[1723544803840,20.0,144.07,144.04,6.9421]
[1723544804050,26.9402,144.09,144.04,6.9421]
[1723544804346,20.0,144.09,144.05,45.0]
[1723544804671,47.80676914,144.1,144.05,45.0]
[1723544804879,6.9431,144.03,143.99,16.3979]
[1723544805241,6.9431,144.03,143.99,23.3428]
[1723544805540,6.943,144.03,143.99,23.3428]
[1723544805964,6.9423,144.05,144.0,6.9444]
[1723544806268,6.9423,144.05,144.01,45.0]
[1723544806438,40.56,144.06,144.01,45.0]
[1723544806439,6.9426,144.04,144.01,45.0]
[1723544806840,6.9422,144.05,144.0,45.0]
[1723544807261,6.9417,144.06,144.01,6.9439]
[1723544807568,20.0,144.05,144.02,51.9432]
[1723544807864,20.0,144.05,144.03,0.12549]
[1723544808073,40.56,144.1,144.04,6.9425]
[1723544808375,40.56,144.1,144.05,45.0]
[1723544808376,20.0,144.09,144.05,45.0]
[1723544808541,20.0,144.09,144.05,51.9417]
[1723544808740,26.9401,144.09,144.05,51.9417]
[1723544809167,20.0,144.09,144.06,0.25098]
[1723544809471,6.9398,144.1,144.06,0.25098]
[1723544809875,6.9401,144.09,144.06,0.25098]
[1723544810076,6.9401,144.09,144.05,62.48039]
[1723544810775,6.9402,144.09,144.05,52.06749]
[1723544811072,6.9392,144.11,144.06,7.19238]
[1723544811239,26.9396,144.1,144.07,45.0]
[1723544811744,26.9396,144.1,144.06,0.25098]
[1723544811745,6.9407,144.08,144.06,45.0]
[1723544811943,6.9407,144.08,144.04,23.53719]
[1723544811944,6.9407,144.08,144.05,45.12549]
[1723544812157,6.9402,144.09,144.05,45.12549]
[1723544812340,6.9402,144.09,144.05,52.06739]
[1723544812551,20.0,144.1,144.06,17.3537]
[1723544812753,20.0,144.11,144.07,45.25098]
[1723544812968,26.9393,144.11,144.07,45.25098]
[1723544813149,20.0,144.11,144.07,51.941]
[1723544813761,20.0,144.11,144.07,45.0]
[1723544814066,20.0,144.11,144.07,69.2933]
[1723544815075,20.0,144.11,144.08,0.12549]
[1723544815297,26.9393,144.11,144.08,0.12549]
[1723544815897,26.9393,144.11,144.07,62.3525]
[1723544816190,6.9396,144.1,144.07,45.0]
[1723544816402,20.0,144.11,144.08,7.44246]
[1723544816567,27.743052,144.13,144.09,51.94]
[1723544816769,27.743052,144.13,144.09,45.0]
[1723544817095,6.9387,144.12,144.09,45.0]
[1723544817261,20.804752,144.13,144.09,45.0]
[1723544817466,6.9408,144.08,144.04,6.0556]
[1723544817780,6.9408,144.08,144.05,0.12549]
[1723544818091,17.3479,144.11,144.04,6.0556]
[1723544818307,17.3553,144.05,144.0,6.2404]
[1723544818592,6.9431,144.03,144.0,6.2404]
[1723544819166,26.9435,144.02,144.0,6.2404]
[1723544819494,20.0,144.02,144.0,6.2404]
[1723544819862,20.0,144.03,144.0,6.2404]
[1723544820058,26.943,144.03,144.0,6.2404]
[1723544820261,6.9435,144.02,144.0,6.2404]
[1723544820482,20.0,144.03,143.99,16.3979]
[1723544820699,6.9441,144.01,143.99,16.3979]
[1723544820859,6.9444,144.0,143.96,6.2549]
[1723544821880,6.944,144.01,143.96,6.2549]
[1723544822078,20.0,144.03,143.96,40.9846]
[1723544822295,40.56,144.09,143.96,40.9846]
[1723544822463,6.9411,144.07,144.03,6.9429]
[1723544822668,47.5004,144.09,144.04,6.9424]
[1723544823171,6.9419,144.06,144.0,7.06949]
[1723544823399,40.56,144.09,144.02,0.12549]
[1723544823591,6.9406,144.08,144.03,6.9425]
[1723544823782,40.56,144.11,144.04,51.92696]
[1723544823973,40.56,144.11,144.07,6.941]
[1723544823974,6.9394,144.11,144.07,6.941]
[1723544824174,0.804752,144.13,144.1,6.9395]
[1723544824565,0.804752,144.13,144.11,45.0]
[1723544825378,0.804752,144.13,144.1,45.0]
[1723544825579,0.804752,144.13,144.05,34.7078]
[1723544825580,1.62438078,144.13,144.04,6.425]
[1723544825775,1.62438078,144.13,144.05,52.19288]
[1723544825776,6.9397,144.1,144.05,52.19288]
[1723544826073,6.9401,144.09,144.04,13.3673]
[1723544826278,40.56,144.1,144.04,6.425]
[1723544826496,20.81962878,144.09,144.04,6.425]
[1723544826677,20.0,144.09,144.04,6.425]
[1723544826873,26.9404,144.09,144.04,13.3671]
[1723544827489,6.9406,144.08,144.04,6.425]
[1723544827689,6.9413,144.07,144.04,6.425]
[1723544828093,6.9407,144.08,144.04,6.425]
[1723544828295,20.0,144.09,144.05,8.32905215]
[1723544828478,20.0,144.09,144.06,6.9414]
[1723544829296,20.0,144.09,144.07,45.0]
[1723544829606,20.0,144.09,144.06,45.0]
[1723544830201,20.0,144.09,144.07,0.12549]
[1723544830410,20.0,144.1,144.07,0.50196]
[1723544830785,6.9395,144.11,144.07,0.50196]
[1723544830997,6.9388,144.12,144.07,7.44286]
[1723544831180,20.0,144.11,144.08,45.0]
[1723544831381,26.9394,144.11,144.07,0.50196]
[1723544832388,20.0,144.11,144.07,0.50196]
[1723544832579,20.0,144.12,144.08,6.9404]
[1723544832776,26.9388,144.12,144.09,45.0]
[1723544834006,6.9391,144.11,144.09,45.0]
[1723544834209,0.81962878,144.11,144.08,45.0]
[1723544834408,20.0,144.12,144.08,45.0]
[1723544834581,6.9392,144.11,144.08,45.0]
[1723544834780,26.9387,144.12,144.08,45.0]
[1723544835207,6.9392,144.11,144.08,45.0]
[1723544835417,6.9396,144.1,144.07,45.0]
[1723544835987,20.0,144.12,144.05,0.12549]
[1723544836284,6.941,144.07,144.04,6.425]
[1723544836501,40.56,144.09,144.03,16.4536]
[1723544836698,20.0,144.12,144.0,13.3639]
[1723544836699,6.9435,144.02,144.0,6.4198]
[1723544836890,40.56,144.05,143.99,15.1648]
[1723544837194,40.56,144.07,143.96,6.4198]
[1723544837488,20.0,144.06,144.03,6.9429]
[1723544837815,26.9409,144.08,144.02,17.3583]
[1723544838007,6.9411,144.07,144.02,24.3013]
[1723544838311,20.0,144.06,144.03,45.25098]
[1723544838482,20.0,144.06,144.03,52.19388]
[1723544838686,20.0,144.07,144.03,52.19388]
[1723544839009,20.0,144.07,143.99,17.3614]
[1723544839180,6.943,144.03,143.99,24.306]
[1723544839387,6.943,144.03,143.96,23.7849]
[1723544839811,0.81962878,144.02,143.96,6.4198]
[1723544839987,6.945,143.99,143.96,6.4198]
[1723544840192,6.9447,144.0,143.96,6.4198]
[1723544840509,40.56,144.01,143.96,6.4198]
[1723544840711,20.0,144.0,143.96,6.4198]
[1723544841016,26.9447,144.0,143.96,13.3661]
[1723544841189,26.9447,144.0,143.96,6.4198]
[1723544841385,6.9449,143.99,143.96,6.4198]
[1723544842094,6.9457,143.98,143.95,15.1648]
[1723544842314,6.9459,143.97,143.93,6.5134]
[1723544843002,6.9468,143.95,143.91,15.7736]
[1723544843193,40.56,143.99,143.91,15.7736]
[1723544843397,20.0,144.0,143.95,6.9468]
[1723544843588,20.0,144.0,143.91,15.7736]
[1723544843795,6.3168,144.07,143.92,6.3252]
[1723544844105,6.9425,144.04,143.99,6.9447]
[1723544844307,40.56,144.06,143.95,17.3663]
[1723544844500,6.9442,144.01,143.96,7.44826]
[1723544844697,6.9453,143.99,143.97,45.0]
[1723544844913,6.9444,144.0,143.97,45.0]
[1723544845126,6.9455,143.98,143.96,45.0]
[1723544845590,6.9458,143.97,143.96,45.0]
[1723544845790,6.9458,143.97,143.92,30.6432]
[1723544845990,6.9458,143.97,143.93,45.12549]
[1723544846211,40.56,144.0,143.93,45.0]
[1723544846427,40.56,143.98,143.92,6.3252]
[1723544846715,6.9465,143.96,143.92,6.3252]
[1723544846896,26.946,143.97,143.92,13.2733]
[1723544847091,26.946,143.97,143.93,6.9478]
[1723544847291,6.9464,143.96,143.92,6.3252]
[1723544847516,6.9464,143.96,143.92,13.2735]
[1723544847890,26.9459,143.97,143.93,45.0]
[1723544848091,20.0,143.97,143.93,51.9477]
[1723544848289,20.0,143.98,143.95,6.9466]
[1723544848591,26.9449,143.99,143.96,45.0]
[1723544848790,6.9454,143.98,143.95,45.0]
[1723544849010,20.0,143.97,143.94,51.9473]
[1723544849218,20.0,143.97,143.94,45.0]
[1723544849392,26.946,143.97,143.94,45.0]
[1723544849592,20.0,143.97,143.94,45.0]
[1723544849793,6.944,144.01,143.95,17.74247]
[1723544850022,40.56,144.06,143.98,17.3631]
[1723544850228,6.9423,144.05,144.0,6.9441]
[1723544850521,40.56,144.06,144.0,6.9441]
[1723544850721,6.9421,144.05,144.0,6.9441]
[1723544851016,40.56,144.06,144.01,51.9439]
[1723544851390,40.56,144.08,144.02,6.9433]
[1723544851589,40.56,144.08,144.01,45.0]
[1723544851590,6.9423,144.05,144.03,45.0]
[1723544851794,6.9426,144.04,144.01,45.0]
[1723544852012,6.9421,144.05,144.01,45.0]
[1723544852214,40.56,144.08,144.02,0.12549]
[1723544852419,40.56,144.1,144.02,0.50196]
[1723544852697,40.56,144.1,144.01,45.0]
[1723544852698,6.9415,144.06,144.01,51.9436]
[1723544852898,6.9415,144.06,144.02,0.50196]
[1723544853098,40.56,144.1,144.03,17.3574]
[1723544853322,6.9406,144.08,144.04,45.0]
[1723544853502,47.4997,144.1,144.05,6.9418]
[1723544853717,6.9402,144.09,144.06,45.0]
[1723544854218,6.9402,144.09,144.05,45.0]
[1723544854219,0.81962878,144.09,144.05,45.0]
[1723544854424,40.56,144.1,144.05,45.0]
[1723544854603,40.56,144.1,144.0,30.5739]
[1723544854604,40.56,144.08,144.0,30.5739]
[1723544855125,6.9421,144.05,144.0,30.5739]
[1723544855322,6.9417,144.06,144.01,6.9438]
[1723544855507,20.0,144.05,144.01,6.9438]
[1723544855713,26.9421,144.05,144.0,30.5741]
[1723544855916,26.9421,144.05,144.01,45.37647]
[1723544856101,6.9426,144.04,144.01,45.0]
[1723544856512,26.9422,144.05,144.01,51.9438]
[1723544856721,6.9422,144.05,144.01,51.9438]
[1723544857732,20.0,144.07,144.01,45.0]
[1723544857933,20.0,144.07,144.01,51.9438]
[1723544858134,20.0,144.07,144.02,0.12549]
[1723544858317,20.0,144.09,144.02,0.50196]
[1723544858624,6.9414,144.07,144.02,0.25098]
[1723544858821,20.0,144.06,144.03,7.19378]
[1723544859123,20.0,144.06,144.04,51.9424]
[1723544859329,20.0,144.06,144.05,0.25098]
[1723544860405,20.0,144.06,144.04,51.9423]
[1723544860612,26.9405,144.09,144.04,51.9421]
[1723544860818,26.9405,144.09,144.05,0.25098]
[1723544861424,26.9405,144.09,144.05,7.19288]
[1723544861622,26.9405,144.09,144.06,45.0]
[1723544861929,20.0,144.09,144.06,45.0]
[1723544862130,20.0,144.09,144.05,0.12549]
[1723544862131,40.56,144.1,144.01,0.12549]
[1723544862314,40.56,144.08,144.01,0.50196]
[1723544862523,20.0,144.07,144.01,45.25098]
[1723544862932,6.9426,144.04,144.01,45.25098]
[1723544863316,6.9422,144.05,144.01,52.19488]
[1723544863522,20.0,144.07,144.01,45.25098]
[1723544863721,20.0,144.07,144.03,0.12549]
[1723544863938,26.9414,144.07,144.03,45.37647]
[1723544864336,26.9414,144.07,144.03,45.12549]
[1723544864746,20.0,144.07,144.04,0.12549]
[1723544864917,40.56,144.1,144.03,45.12549]
[1723544864918,6.9415,144.06,144.03,45.12549]
[1723544866113,6.9413,144.07,144.03,45.12549]
[1723544866319,26.9416,144.06,144.03,45.12549]
[1723544866640,6.9416,144.06,144.03,45.12549]
[1723544869140,6.9412,144.07,144.03,45.12549]
[1723544869347,26.9404,144.09,144.05,0.12549]
[1723544869512,26.9404,144.09,144.05,45.12549]
[1723544869840,26.9404,144.09,144.05,52.06729]
[1723544870135,20.0,144.09,144.05,45.0]
[1723544871238,20.0,144.09,144.01,17.3592]
[1723544871239,20.0,144.09,144.02,0.12549]
[1723544871539,6.9417,144.06,144.02,0.12549]
[1723544871728,6.9417,144.06,144.02,52.06889]
[1723544871930,40.56,144.08,144.02,52.19438]
[1723544871931,6.9411,144.07,144.02,52.19438]
[1723544872244,20.0,144.09,144.06,6.9414]
[1723544872426,20.0,144.09,144.07,45.0]
[1723544872823,6.9393,144.11,144.06,51.9415]
[1723544873025,6.9393,144.11,144.06,52.06699]
[1723544873225,6.9397,144.1,144.06,52.06699]
[1723544874128,20.0,144.09,144.06,45.12549]
[1723544876823,0.804752,144.13,144.07,0.12549]
[1723544877018,6.9395,144.11,144.07,16.88457]
[1723544877242,6.9396,144.1,144.08,45.0]
[1723544877936,6.9392,144.11,144.08,45.0]
[1723544879049,40.56,144.11,144.08,45.0]
[1723544879225,26.9397,144.1,144.05,6.9417]
[1723544879425,26.9397,144.1,144.06,45.0]
[1723544879938,6.9402,144.09,144.06,45.0]
[1723544880152,6.9402,144.09,144.05,45.0]
[1723544880336,6.9407,144.08,144.05,45.0]
[1723544880734,6.9418,144.06,144.03,16.4497]
[1723544880932,40.56,144.09,144.03,16.4497]
[1723544881136,20.0,144.08,144.03,16.4497]
[1723544881326,20.0,144.08,144.04,17.3559]
[1723544881525,26.9407,144.08,144.04,24.2983]
[1723544881754,26.9407,144.08,144.04,17.3559]
[1723544881934,6.941,144.07,144.03,16.4497]
[1723544882450,20.0,144.08,144.03,16.4497]
[1723544882451,20.0,144.08,144.04,6.9422]
[1723544882652,20.0,144.08,144.05,6.942]
[1723544882831,20.0,144.08,144.06,6.9415]
[1723544883025,20.0,144.1,144.07,6.941]
[1723544883337,20.0,144.1,144.08,45.0]
[1723544883656,6.9393,144.11,144.08,45.0]
[1723544884234,6.9388,144.12,144.08,51.9404]
[1723544884430,20.0,144.11,144.08,45.0]
[1723544885054,0.804752,144.13,144.09,17.60098]
[1723544885232,0.804752,144.13,144.1,52.06489]
[1723544885634,0.804752,144.13,144.11,6.939]
[1723544885837,0.804752,144.13,144.12,45.0]
[1723544886351,0.804752,144.13,144.11,45.0]
[1723544886527,0.804752,144.13,144.11,62.3475]
[1723544886730,0.804752,144.13,144.12,0.12549]
[1723544886951,0.804752,144.13,144.12,7.31507]
[1723544887257,0.804752,144.13,144.12,52.31507]
[1723544887753,0.804752,144.13,144.12,52.44056]
[1723544888141,0.804752,144.13,144.12,45.50196]
[1723544888450,0.804752,144.13,144.12,45.0]
[1723544888657,7.742852,144.13,144.12,45.0]
[1723544889161,0.804752,144.13,144.12,45.0]
[1723544889946,0.804752,144.13,144.11,45.0]
[1723544891068,0.804752,144.13,144.08,23.354]
[1723544891263,0.804752,144.13,144.1,6.9394]
[1723544892262,0.804752,144.13,144.11,45.0]
[1723544893056,0.804752,144.13,144.11,51.9391]
[1723544893236,0.804752,144.13,144.11,45.0]
[1723544893435,7.743052,144.13,144.11,45.0]
[1723544894566,7.743052,144.13,144.1,45.0]
[1723544895261,0.804752,144.13,144.1,45.0]
[1723544895435,0.804752,144.13,144.1,51.9396]
[1723544895641,0.804752,144.13,144.1,45.0]
[1723544900679,33.214752,144.13,144.07,16.4843]
[1723544900987,32.41,144.11,144.05,24.2965]
[1723544901186,6.9401,144.09,144.05,17.3546]
[1723544901764,20.0,144.1,144.06,6.9414]
[1723544902087,20.0,144.1,144.07,17.3523]
[1723544902259,26.9389,144.12,144.08,45.0]
[1723544902459,6.9392,144.11,144.08,45.0]
[1723544902660,20.0,144.1,144.08,45.0]
[1723544903348,20.0,144.11,144.08,45.0]
[1723544903892,20.0,144.11,144.08,51.9405]
[1723544904254,6.9392,144.11,144.08,45.0]
[1723544905253,26.9387,144.12,144.08,45.0]
[1723544905482,20.0,144.12,144.09,0.12549]
[1723544905687,0.804752,144.13,144.09,0.25098]
[1723544905861,0.804752,144.13,144.12,17.3466]
[1723544906066,0.804752,144.13,144.12,45.0]
[1723544906363,0.804752,144.13,144.11,45.0]
[1723544906969,0.804752,144.13,144.11,51.939]
[1723544907464,0.804752,144.13,144.12,7.31507]
[1723544907664,0.804752,144.13,144.12,45.37647]
[1723544908093,0.804752,144.13,144.12,45.0]
[1723544908583,0.804752,144.13,144.12,45.12549]
[1723544909060,0.804752,144.13,144.12,45.25098]
[1723544909382,0.804752,144.13,144.12,52.44056]
[1723544909785,0.804752,144.13,144.12,45.50196]
[1723544910085,0.804752,144.13,144.12,0.50196]
[1723544911292,0.804752,144.13,144.11,51.9389]
[1723544911293,0.804752,144.13,144.11,45.0]
[1723544911471,7.743352,144.13,144.07,17.3523]
[1723544911661,0.804752,144.13,144.09,6.9399]
[1723544911855,0.804752,144.13,144.1,6.9396]
[1723544912488,0.804752,144.13,144.11,6.9389]
[1723544912690,0.804752,144.13,144.12,52.44056]
[1723544914579,49.7429,144.24,144.16,6.9363]
[1723544914781,49.7429,144.24,144.15,17.342]
[1723544914782,32.41,144.24,144.17,52.43816]
[1723544914983,6.9338,144.22,144.17,45.50196]
[1723544915182,6.9343,144.21,144.17,52.43816]
[1723544915896,6.934,144.22,144.17,52.43816]
[1723544916191,6.934,144.22,144.18,6.9356]
[1723544916521,6.934,144.22,144.19,45.0]
[1723544916961,6.9334,144.23,144.2,0.12549]
[1723544917160,6.9334,144.23,144.2,0.37647]
[1723544917404,6.9334,144.23,144.2,0.25098]
[1723544918183,20.0,144.22,144.2,0.25098]
[1723544919667,6.9327,144.25,144.2,7.18558]
[1723544919974,20.0,144.24,144.21,45.0]
[1723544920163,20.0,144.24,144.22,0.12549]
[1723544920368,0.804752,144.27,144.22,0.25098]
[1723544920569,0.804752,144.27,144.23,0.25098]
[1723544921779,20.0,144.37,144.26,64.82]
[1723544922104,20.0,144.37,144.36,7.05259]
[1723544922288,20.0,144.37,144.36,6.9271]
[1723544922469,0.804752,144.42,144.38,7.05149]
[1723544922673,0.804752,144.42,144.4,0.12549]
[1723544922868,0.804752,144.42,144.41,7.05019]
[1723544923298,0.804752,144.42,144.41,7.30117]
[1723544923478,0.804752,144.42,144.41,52.42666]
[1723544924610,6.921,144.49,144.45,0.12549]
[1723544924769,40.33,144.52,144.45,0.50196]
[1723544924770,6.9204,144.5,144.45,0.50196]
[1723544924975,40.33,144.52,144.45,52.42426]
[1723544925276,6.9199,144.51,144.45,52.42426]
[1723544925470,6.9199,144.51,144.41,17.3118]
[1723544925471,40.33,144.48,144.41,17.3118]
[1723544925772,6.9223,144.46,144.41,24.2363]
[1723544926402,40.33,144.48,144.41,24.2363]
[1723544926403,40.33,144.48,144.41,17.3118]
[1723544926575,20.0,144.47,144.42,0.12549]
[1723544926782,20.0,144.47,144.42,0.25098]
[1723544927087,20.0,144.47,144.42,7.17498]
[1723544927285,20.0,144.47,144.43,45.0]
[1723544928610,20.0,144.5,144.42,45.37647]
[1723544928795,20.0,144.5,144.43,0.25098]
[1723544929110,40.33,144.53,144.44,0.12549]
[1723544929274,0.804752,144.56,144.52,0.12549]